[Event "German Bundesliga 2021-22"]
[Site "Germany"]
[Date "2022.04.09"]
[Round "3.1"]
[White "Fressinet, Laurent"]
[Black "Postny, Evgeny"]
[Result "1/2-1/2"]
[ECO "E11"]
[WhiteElo "2630"]
[BlackElo "2567"]
[Annotator "RC"]
[PlyCount "81"]
[EventDate "2022.03.05"]
[EventType "team-tourn"]
[EventCountry "GER"]
[SourceTitle "playchess.com"]
[Source "ChessBase"]
[SourceQuality "1"]
[TimeControl "40/5400+30:1800+30"]

1. d4 {[%emt 0:00:00]} Nf6 {[%emt 0:00:00]} 2. c4 {[%emt 0:00:00]} e6 {[%emt 0:00:00]} 3. g3 {[%emt 0:00:00]} d5 {[%emt 0:00:00]} 4. Bg2 {[%emt 0:00:00]} Bb4+ {[%emt 0:00:00]} 5. Bd2 {[%emt 0:00:00]} Be7 {[%emt 0:00:00]} 6. Nf3 {[%emt 0:00:00]} c6 {[%emt 0:00:00]} 7. O-O {[%emt 0:00:00]} O-O {[%emt 0:00:01]} 8. Qc2 {[%emt 0:00:32]} Nbd7 {[%emt 0:01:11]} 9. Rc1 {[%emt 0:00:35]} b6 {[%emt 0:05:57]} 10. a4 {[%emt 0:04:07]} a5 {[%emt 0:10:38]} 11. cxd5 {[%emt 0:04:33]} cxd5 {[%emt 0:00:06]} 12. Nc3 {[%emt 0:00:13]} Ba6 {[%emt 0:12:27]} 13. Nb5 {[%emt 0:02:59]} Bxb5 {[%emt 0:01:18]} 14. axb5 {[%emt 0:00:06]} Rc8 {[%emt 0:04:31]} 15. Qa4 {[%emt 0:08:27]} Ne4 {[%emt 0:02:10]} 16. Be1 {[%emt 0:07:32]} Bd6 {[%emt 0:03:42]} 17. e3 {[%emt 0:11:15]} Re8 {[%emt 0:12:37]} 18. Rc2 {[%emt 0:13:45]} Rxc2 {[%emt 0:10:05]} 19. Qxc2 {[%emt 0:00:06]} Qc8 {[%emt 0:00:47]} 20. Rc1 {[%emt 0:06:38]} Qxc2 {[%emt 0:00:06]} 21. Rxc2 {[%emt 0:00:04]} Kf8 {[%emt 0:05:59]} 22. Rc6 {[%emt 0:07:45]} Ke7 {[%emt 0:00:14]} 23. Ne5 {[%emt 0:07:56]} Nxe5 {[%emt 0:12:39]} 24. dxe5 {[%emt 0:00:56]} Bxe5 {[%emt 0:00:05]} 25. Bxe4 {[%emt 0:07:31]} dxe4 {[%emt 0:00:05]} 26. Rxb6 {[%emt 0:00:07]} a4 {[%emt 0:08:53]} 27. Ra6 {[%emt 0:05:07]} Rb8 {[%emt 0:01:52]} 28. Bb4+ {[%emt 0:05:21]} Ke8 {[%emt 0:04:17]} 29. b6 {[%emt 0:05:25]} Kd7 {[%emt 0:00:34]} 30. Rxa4 {[%emt 0:02:09]} Rxb6 {[%emt 0:00:05]} 31. Ra7+ {[%emt 0:00:34]} Kc6 {[%emt 0:03:33]} 32. Bc3 {[%emt 0:01:11]} Bxc3 {[%emt 0:00:38]} 33. bxc3 {[%emt 0:00:02]} Rb7 {[%emt 0:00:07]} 34. Ra4 {[%emt 0:01:10]} Kd5 {[%emt 0:01:56]} 35. g4 {[%emt 0:01:00]} Rc7 {[%emt 0:00:38]} 36. Kg2 {[%emt 0:00:42]} Ke5 {[%emt 0:00:24]} 37. Ra5+ {[%emt 0:00:29]} Kf6 {[%emt 0:00:15]} 38. Ra3 {[%emt 0:00:02]} g5 {[%emt 0:00:34]} 39. Kg3 {[%emt 0:00:45]} h6 {[%emt 0:00:55]} 40. h4 {[%emt 0:00:14]} Rc4 {[%emt 0:00:30]} 41. hxg5+ {[%emt 0:00:00]} 1/2-1/2

[Event "German Bundesliga 2021-22"]
[Site "Germany"]
[Date "2022.04.09"]
[Round "3.2"]
[White "Indjic, Aleksandar"]
[Black "Van Foreest, Jorden"]
[Result "0-1"]
[ECO "D11"]
[WhiteElo "2604"]
[BlackElo "2702"]
[Annotator "TA"]
[PlyCount "108"]
[EventDate "2022.03.05"]
[EventType "team-tourn"]
[EventCountry "GER"]
[SourceTitle "playchess.com"]
[Source "ChessBase"]
[SourceQuality "1"]
[TimeControl "40/5400+30:1800+30"]

{[%evp 9,108,4,12,4,20,-31,-32,-44,-31,-33,-36,-40,-40,-63,-45,-46,-42,-64,-54,-53,-58,-63,-65,-75,-23,-43,-24,-29,-23,-52,-46,-47,-20,-20,-8,-34,-44,-78,-71,-137,-134,-274,-250,-258,-218,-227,-239,-262,-262,-262,-262,-263,-256,-243,-230,-256,-256,-439,-439,-485,-478,-482,-482,-475,-468,-493,-493,-493,-493,-493,-493,-493,-493,-2165,-1218,-1071,-908,-12833,-12833,-12837,-12834,-12839,-12837,-12837,-12838,-12838,-12838,-12837,-12837,-12841,-12841,-12841,-12842,-12842,-12843,-12845,-12844,-12847,-12847,-12847,-12847]} 1. d4 {[%emt 0:00:00]} d5 {[%emt 0:00:00]} 2. c4 {[%emt 0:00:00]} c6 {[%emt 0:00:00]} 3. Nf3 {[%emt 0:00:00]} Nf6 {[%emt 0:00:00]} 4. Qb3 {[%emt 0:00:00]} e6 {[%emt 0:00:00]} 5. Bg5 {[%emt 0:00:00]} Qb6 {[%emt 0:00:00]} 6. Nc3 {[%emt 0:00:00] D11: Slav Defence: 3 Nf3 sidelines and 3...Nf6 4 e3 Bg4.} dxc4 {[%emt 0:00:00]} 7. Qxc4 {[%emt 0:00:00]} (7. Qc2 $1 $11) 7... Qxb2 $15 {[%emt 0:00:00]} 8. Rb1 {[%emt 0:00:00] [#] Black is slightly better.} Qc2 $146 {[%emt 0:00:08]} ({Predecessor:} 8... Qa3 9. Rb3 Qa5 10. Bd2 Nbd7 11. e4 Be7 12. Nb5 cxb5 13. Qxc8+ Rxc8 14. Bxa5 Nxe4 15. Bxb5 Rc1+ {0-1 (15) Ramos Verdu,J (1652)-Uran Bermudez,O (2101) Alzira 2013}) 9. Rc1 {[%emt 0:04:13]} Qf5 {[%emt 0:02:44]} 10. Qb3 {[%emt 0:17:00][%cal Oe2e4]} Nbd7 {[%emt 0:05:06]} 11. g3 {[%emt 0:05:51]} Bd6 {[%emt 0:10:58]} (11... e5 $5 {[%cal Re5d4]} 12. h4 exd4 13. Nxd4 Qa5 $15) 12. h4 {[%emt 0:00:49]} O-O {[%emt 0:03:50]} 13. Bg2 {[%emt 0:03:25]} h6 {[%emt 0:04:15]} 14. Bxf6 {[%emt 0:10:19]} Nxf6 {[%emt 0:04:28]} 15. O-O {[%emt 0:00:22]} e5 {[%emt 0:03:23]} 16. d5 {[%emt 0:06:15]} cxd5 {[%emt 0:10:27]} (16... e4 $17 17. Nd4 Qe5 18. dxc6 Qxd4) 17. Nxd5 $11 {[%emt 0:00:27]} Nxd5 {[%emt 0:04:03]} 18. Qxd5 {[%emt 0:00:12]} Rd8 {[%emt 0:00:43]} 19. Nd2 {[%emt 0:04:28]} Qe6 {[%emt 0:07:03]} 20. Qa5 {[%emt 0:15:46]} Qe7 {[%emt 0:03:44] [#] ...Bb4 is the strong threat.} 21. Nc4 $1 {[%emt 0:03:48]} Bc7 {[%emt 0:00:41]} 22. Qc3 {[%emt 0:00:10]} e4 {[%emt 0:03:25]} 23. Ne3 {[%emt 0:07:09]} Bb6 $36 {[%emt 0:00:29][%mdl 2048] Black has strong initiative.} 24. Qc4 {[%emt 0:03:55]} ({White should try} 24. Rcd1) 24... Rd4 $17 {[%emt 0:10:20]} 25. Qxc8+ {[%emt 0:06:06] White does not recover from this.} (25. Qb5 $17) 25... Rxc8 $19 {[%emt 0:00:12]} 26. Rxc8+ {[%emt 0:00:04]} Rd8 {[%emt 0:05:30]} 27. Nd5 {[%emt 0:00:14]} Qe6 {[%emt 0:00:26]} 28. Nxb6 {[%emt 0:00:08]} Rxc8 {[%emt 0:00:07]} ({Worse is} 28... Qxb6 29. Rxd8+ Qxd8 30. Bxe4 $17) 29. Nxc8 {[%emt 0:00:05]} Qxc8 {[%emt 0:00:09]} 30. Bxe4 {[%emt 0:00:04][%mdl 4096] Endgame KQ-KRB} b5 {[%emt 0:05:23][%cal Bb7b5,Bb5b4][%mdl 32]} 31. Rd1 {[%emt 0:03:41]} Kf8 {[%emt 0:00:08]} 32. Bd3 {[%emt 0:03:56]} Qc5 {[%emt 0:01:49]} 33. Rb1 $2 {[%emt 0:00:54]} (33. e3) 33... b4 {[%emt 0:01:40] Black is clearly winning.} 34. Kg2 {[%emt 0:01:45]} a5 {[%emt 0:01:53][%cal Ba7a5,Ba5a4,Ba4a3][%mdl 32]} 35. Rb2 {[%emt 0:00:10]} a4 {[%emt 0:01:32]} 36. Rc2 {[%emt 0:00:06]} Qd5+ {[%emt 0:03:41]} 37. f3 {[%emt 0:00:08]} b3 {[%emt 0:01:47]} 38. axb3 {[%emt 0:00:10]} Qxb3 {[%emt 0:00:09] Threatens to win with ...a3.} 39. Rc7 {[%emt 0:00:04]} a3 {[%emt 0:05:57] aiming for ...a2.} 40. Bc4 {[%emt 0:00:13]} Qc2 {[%emt 0:00:59] Hoping for ...a2.} 41. Rxf7+ {[%emt 0:31:04]} (41. Kg1 $142 Qb1+ 42. Kg2) 41... Ke8 {[%emt 0:30:07]} 42. Rf4 {[%emt 0:05:57]} a2 {[%emt 0:00:05][%mdl 64] [#] Strongly threatening ...Ke7. Deflection} 43. Bxa2 {[%emt 0:00:45]} Qxe2+ {[%emt 0:00:05]} 44. Kh3 {[%emt 0:00:06]} Qxa2 {[%emt 0:00:05] KQ-KR} 45. h5 {[%emt 0:00:54]} Qf2 {[%emt 0:01:26]} 46. Rf5 {[%emt 0:00:00]} Qf1+ {[%emt 0:00:00]} 47. Kh4 {[%emt 0:00:00]} Qe2 {[%emt 0:00:00]} 48. Kh3 {[%emt 0:00:00]} Ke7 {[%emt 0:00:00]} 49. g4 {[%emt 0:00:00]} Qf2 {[%emt 0:00:00]} 50. Rf4 {[%emt 0:00:00]} Kd6 {[%emt 0:00:00]} 51. Rf5 {[%emt 0:00:00]} Ke6 {[%emt 0:00:00]} 52. f4 {[%emt 0:00:00]} Kd6 {[%emt 0:00:00]} 53. g5 {[%emt 0:00:00]} Qe3+ {[%emt 0:00:00]} 54. Kh4 {[%emt 0:00:00]} Qe1+ {[%emt 0:00:22] Weighted Error Value: White=0.47/Black=0.04 (flawless)} 0-1

[Event "German Bundesliga 2021-22"]
[Site "Germany"]
[Date "2022.04.09"]
[Round "3.2"]
[White "Prusikin, Michael"]
[Black "Areshchenko, Alexander"]
[Result "1/2-1/2"]
[ECO "D85"]
[WhiteElo "2540"]
[BlackElo "2670"]
[Annotator "RC"]
[PlyCount "42"]
[EventDate "2022.03.05"]
[EventType "team-tourn"]
[EventCountry "GER"]
[SourceTitle "playchess.com"]
[Source "ChessBase"]
[SourceQuality "1"]
[TimeControl "40/5400+30:1800+30"]

1. d4 {[%emt 0:00:00]} Nf6 {[%emt 0:00:00]} 2. c4 {[%emt 0:00:00]} g6 {[%emt 0:00:00]} 3. Nc3 {[%emt 0:00:00]} d5 {[%emt 0:00:00]} 4. cxd5 {[%emt 0:00:00]} Nxd5 {[%emt 0:00:00]} 5. e4 {[%emt 0:00:00]} Nxc3 {[%emt 0:00:00]} 6. bxc3 {[%emt 0:00:00]} Bg7 {[%emt 0:00:00]} 7. Nf3 {[%emt 0:00:00]} c5 {[%emt 0:00:00]} 8. Bb5+ {[%emt 0:00:00]} Nc6 {[%emt 0:00:00]} 9. O-O {[%emt 0:00:00]} Qa5 {[%emt 0:00:00]} 10. Bxc6+ {[%emt 0:00:20]} bxc6 {[%emt 0:00:00]} 11. Qc2 {[%emt 0:00:11]} O-O {[%emt 0:11:57]} 12. Be3 {[%emt 0:02:18]} Be6 {[%emt 0:04:53]} 13. Rfc1 {[%emt 0:07:56]} cxd4 {[%emt 0:11:06]} 14. cxd4 {[%emt 0:00:57]} Rfc8 {[%emt 0:01:22]} 15. Qc5 {[%emt 0:02:58]} Qxc5 {[%emt 0:04:19]} 16. Rxc5 {[%emt 0:00:05]} f5 {[%emt 0:04:25]} 17. Ne5 {[%emt 0:09:32]} fxe4 {[%emt 0:04:38]} 18. Nxc6 {[%emt 0:00:21]} Kf8 {[%emt 0:06:54]} 19. a3 {[%emt 0:17:12]} Ke8 {[%emt 0:19:26]} 20. Rb1 {[%emt 0:08:59]} Bd7 {[%emt 0:04:05]} 21. Rbc1 {[%emt 0:13:53]} Bxc6 {[%emt 0:06:01]} 1/2-1/2

[Event "German Bundesliga 2021-22"]
[Site "Germany"]
[Date "2022.04.09"]
[Round "3.2"]
[White "Nagy, Gabor"]
[Black "Adams, Michael"]
[Result "1/2-1/2"]
[ECO "A28"]
[WhiteElo "2530"]
[BlackElo "2698"]
[Annotator "TA"]
[PlyCount "56"]
[EventDate "2022.03.05"]
[EventType "team-tourn"]
[EventCountry "GER"]
[SourceTitle "playchess.com"]
[Source "ChessBase"]
[SourceQuality "1"]
[TimeControl "40/5400+30:1800+30"]

{[%evp 13,56,5,10,0,0,0,0,0,0,0,0,0,0,0,0,0,0,0,0,-10,0,0,0,0,0,0,0,0,0,-5,0,0,0,0,0,0,0,0,0,0,0,0,0,0,0]} 1. c4 {[%emt 0:00:00]} e5 {[%emt 0:00:00]} 2. Nc3 {[%emt 0:00:00]} Nf6 {[%emt 0:00:00]} 3. Nf3 {[%emt 0:00:00]} Nc6 {[%emt 0:00:00]} 4. e3 {[%emt 0:00:00]} Bb4 {[%emt 0:00:00]} 5. Qc2 {[%emt 0:00:00]} Bxc3 {[%emt 0:00:00]} 6. Qxc3 {[%emt 0:00:00]} Qe7 {[%emt 0:00:00]} 7. Be2 {[%emt 0:00:00]} O-O {[%emt 0:00:00] The position is equal.} 8. d4 {[%emt 0:00:00] The main line 8.d4 scores better than 8.0-0. A28: English Opening: Four Knights Variation.} exd4 {[%emt 0:00:00]} 9. Nxd4 {[%emt 0:00:00]} Ne4 {[%emt 0:00:00]} 10. Qb3 {[%emt 0:00:00]} Nxd4 {[%emt 0:03:49]} 11. exd4 {[%emt 0:00:00]} d5 {[%emt 0:01:49]} 12. cxd5 {[%emt 0:00:00]} Nf6 $1 {[%emt 0:03:28]} 13. Bf4 {[%emt 0:00:00]} Rd8 {[%emt 0:05:52]} 14. d6 {[%emt 0:02:16]} cxd6 {[%emt 0:00:25]} 15. Qe3 {[%emt 0:00:45]} Be6 {[%emt 0:04:49] [#] Threatens to win with ...Nd5.} 16. O-O $146 {[%emt 0:09:51]} ({Predecessor:} 16. Bg3 Re8 17. O-O Qd7 18. Qa3 Bxa2 19. Rfe1 Bd5 20. Qxd6 Qxd6 21. Bxd6 Rac8 22. Be5 a6 {½-½ (22) Hassim,U (2338)-Byrne,M (2320) ICCF email 2018}) 16... Nd5 {[%emt 0:10:54]} 17. Qd2 {[%emt 0:00:39]} Nxf4 {[%emt 0:02:19]} 18. Qxf4 {[%emt 0:00:14]} h6 {[%emt 0:08:12]} 19. Bd3 {[%emt 0:06:23]} Qg5 {[%emt 0:03:24]} 20. Qxg5 {[%emt 0:03:36]} hxg5 {[%emt 0:00:04]} 21. f3 {[%emt 0:00:39]} Rac8 {[%emt 0:05:49]} 22. Rfc1 {[%emt 0:01:12]} f5 {[%emt 0:05:07]} 23. Kf2 {[%emt 0:02:51]} Kf7 {[%emt 0:00:59]} 24. h3 {[%emt 0:01:18]} Kf6 {[%emt 0:01:20]} 25. a3 {[%emt 0:01:19]} Bd5 {[%emt 0:03:49]} 26. Ke3 {[%emt 0:02:39]} g6 {[%emt 0:02:48]} 27. Kd2 {[%emt 0:03:43]} b6 {[%emt 0:11:56]} 28. Ba6 {[%emt 0:12:48]} Rxc1 {[%emt 0:00:21] An even fight not without its subleties.  Weighted Error Value: White=0.01 (flawless) /Black=0.00 (flawless)} 1/2-1/2

[Event "German Bundesliga 2021-22"]
[Site "Germany"]
[Date "2022.04.09"]
[Round "3.2"]
[White "Richter, Michael"]
[Black "Lupulescu, Constantin"]
[Result "0-1"]
[ECO "D04"]
[WhiteElo "2496"]
[BlackElo "2620"]
[Annotator "TA"]
[PlyCount "116"]
[EventDate "2022.03.05"]
[EventType "team-tourn"]
[EventCountry "GER"]
[SourceTitle "playchess.com"]
[Source "ChessBase"]
[SourceQuality "1"]
[TimeControl "40/5400+30:1800+30"]

{[%evp 11,116,0,0,-6,-1,-3,0,0,0,-19,-8,-42,-36,-55,-60,-59,-53,-51,-51,-49,-53,-70,-67,-73,-67,-129,-136,-135,-136,-142,-127,-127,-87,-87,-93,-88,-94,-94,-94,-94,-95,-95,-94,-95,-95,-99,-99,-99,-99,-99,-98,-1339,-1312,-1156,-1018,-780,-99,-712,-186,-811,-99,-452,0,-884,-879,-669,-636,-590,-311,-1171,-1156,-1137,-1124,-1117,-1117,-869,-502,-1356,-1142,-1105,-12819,-12825,-12822,-12821,-12828,-12829,-12828,-12826,-12825,-2131,-1745,-12831,-12826,-12838,-12838,-12841,-2557,-12838,-478,-12833,-12833,-12834,-12834,-12839,-12837,-12840,-993]} 1. d4 {[%emt 0:00:00]} Nf6 {[%emt 0:00:00]} 2. Nf3 {[%emt 0:00:00]} d5 {[%emt 0:00:00]} 3. e3 {[%emt 0:00:00]} c5 {[%emt 0:00:00]} 4. c3 {[%emt 0:00:00]} e6 {[%emt 0:00:00]} 5. Nbd2 {[%emt 0:00:00]} Nbd7 {[%emt 0:00:00]} 6. Bd3 {[%emt 0:00:00]} b6 {[%emt 0:00:00]} 7. O-O {[%emt 0:00:00] D05: Colle System with ...e6.} Bb7 {[%emt 0:00:00]} 8. Qe2 {[%emt 0:00:00]} Ne4 {[%emt 0:00:00]} 9. Ne5 {[%emt 0:00:24] aiming for Nxe4. The position is equal.} Bd6 {[%emt 0:09:47]} 10. f4 {[%emt 0:22:35]} O-O {[%emt 0:02:55] [#]} 11. Bxe4 $146 {[%emt 0:01:44]} ({Predecessor:} 11. Rf3 f6 12. Nxd7 Qxd7 13. Rh3 e5 14. Nxe4 dxe4 15. Bc4+ Rf7 16. Qh5 h6 17. fxe5 fxe5 {½-½ (34) Ljepic,A (2136)-Shoshin,K (2001) Belgrade 2021}) 11... dxe4 {[%emt 0:00:40]} 12. Ndc4 {[%emt 0:02:56]} Ba6 {[%emt 0:14:44]} 13. b3 {[%emt 0:04:11]} f6 {[%emt 0:06:30]} 14. Nxd7 {[%emt 0:05:00]} Qxd7 {[%emt 0:01:54]} 15. a4 {[%emt 0:15:44]} Qc6 {[%emt 0:25:06]} 16. Ba3 {[%emt 0:09:23]} Rfd8 {[%emt 0:02:46]} 17. Rfd1 {[%emt 0:13:44]} Bf8 {[%emt 0:02:24]} 18. dxc5 {[%emt 0:05:34]} ({White should play} 18. Qc2 $15) 18... bxc5 $17 {[%emt 0:03:07]} 19. Rxd8 {[%emt 0:02:44]} Rxd8 {[%emt 0:00:24]} 20. Rd1 {[%emt 0:00:41] [#] Against Rd3} Bxc4 $1 {[%emt 0:13:48]} 21. bxc4 {[%emt 0:00:14]} Rd3 {[%emt 0:00:05]} 22. Rxd3 {[%emt 0:02:16]} exd3 {[%emt 0:00:03]} 23. Qxd3 {[%emt 0:00:14]} Qxa4 {[%emt 0:00:04]} 24. Bc1 {[%emt 0:04:51]} Qa1 {[%emt 0:01:40]} 25. Qc2 {[%emt 0:01:19]} a5 {[%emt 0:01:22][%cal Ba7a5,Ba5a4][%mdl 32]} 26. Kf2 {[%emt 0:04:54]} a4 {[%emt 0:00:49] Strongly threatening ...a3.} (26... Be7 {is interesting.} 27. Bd2 f5 28. e4 Qh1) 27. Qb2 {[%emt 0:02:07] Against a3} Qxb2+ {[%emt 0:00:11]} 28. Bxb2 {[%emt 0:00:02][%mdl 4096] Endgame KB-KB} Kf7 {[%emt 0:08:21]} 29. e4 {[%emt 0:01:36]} Kg6 {[%emt 0:01:38]} 30. Kf3 {[%emt 0:01:43]} f5 {[%emt 0:00:32]} 31. g4 $2 {[%emt 0:01:15][%mdl 8192]} (31. h3 $17) 31... fxg4+ $19 {[%emt 0:02:22]} 32. Kxg4 {[%emt 0:00:02]} Be7 {[%emt 0:03:05] And now ...h5+ would win.} 33. Ba3 {[%emt 0:00:33]} Kf7 $2 {[%emt 0:00:04]} (33... h5+ $19 34. Kg3 Kf6) 34. Kf3 $2 {[%emt 0:00:32][%mdl 8192]} (34. h4 $17) 34... Bf6 $2 {[%emt 0:00:28]} (34... g5 35. Kg4 gxf4 36. Kxf4 Bd6+ 37. e5 Be7) 35. Bb2 $2 {[%emt 0:00:48]} (35. e5 Be7 36. Ke4) 35... Ke8 $2 {[%emt 0:01:03]} (35... g5 $19 {and Black stays clearly on top.} 36. fxg5 Bxg5) 36. Ke2 $2 {[%emt 0:00:32][%mdl 8192]} (36. Kg4 $17 {is more resistant.}) 36... Kf7 {[%emt 0:00:47]} (36... g5 $142 37. fxg5 Bxg5) 37. Kf3 $1 {[%emt 0:00:25]} g5 {[%emt 0:00:29]} 38. fxg5 {[%emt 0:00:42]} Bxg5 {[%emt 0:00:04]} 39. Kg4 {[%emt 0:00:43]} Kg6 {[%emt 0:01:24]} 40. Kf3 $2 {[%emt 0:00:29]} (40. Kg3) 40... Kh5 {[%emt 0:00:32] Black is clearly winning.} 41. Ba3 {[%emt 0:00:00]} Be7 {[%emt 0:00:00]} 42. h3 {[%emt 0:02:31]} Bd6 {[%emt 0:02:44]} 43. Kg2 {[%emt 0:01:59]} Kh4 {[%emt 0:01:56]} 44. Bc1 {[%emt 0:01:00]} (44. e5 $142 Be7 45. Kh2) 44... Be5 {[%emt 0:01:12]} 45. Ba3 {[%emt 0:00:10]} Bxc3 {[%emt 0:03:11]} 46. Bxc5 {[%emt 0:00:06] [#]} Kg5 $1 {[%emt 0:00:16]} 47. Bd6 {[%emt 0:06:27]} Kf6 {[%emt 0:03:30]} 48. Ba3 {[%emt 0:05:21] [#]} Ke5 $1 {[%emt 0:01:48]} 49. Kf3 {[%emt 0:01:43]} Kd4 {[%emt 0:00:51]} 50. c5 {[%emt 0:00:49]} Ba5 {[%emt 0:00:50] Hoping for ...Bc7.} 51. h4 {[%emt 0:09:38]} Kc4 {[%emt 0:10:16]} 52. Kf4 {[%emt 0:04:30]} Bc7+ {[%emt 0:00:58]} ({Stronger than} 52... Kb3 53. Bc1 $11) 53. Kg5 {[%emt 0:00:18]} Bd8+ {[%emt 0:00:06]} (53... Kb3 $142 54. Bc1 Kc2) 54. Kf4 {[%emt 0:02:04]} Kd4 {[%emt 0:02:41]} (54... Kb3 $142 55. Bc1 Kc2) 55. c6 {[%emt 0:00:43]} (55. h5 $142 Bc7+ 56. Kf3) 55... Bc7+ {[%emt 0:00:20]} 56. Kf3 {[%emt 0:00:41]} h5 {[%emt 0:02:37]} 57. Be7 {[%emt 0:00:17]} Kc4 {[%emt 0:00:20]} 58. Ke3 {[%emt 0:00:40]} Kb5 {[%emt 0:01:40] Weighted Error Value: White=1.13/Black=0.74} (58... e5 $142 59. Kd2 Kb3) 0-1

[Event "German Bundesliga 2021-22"]
[Site "Germany"]
[Date "2022.04.09"]
[Round "3.3"]
[White "Kasimdzhanov, Rustam"]
[Black "Vandenbussche, Thibaut"]
[Result "1/2-1/2"]
[ECO "C10"]
[WhiteElo "2659"]
[BlackElo "2401"]
[Annotator "TA"]
[PlyCount "81"]
[EventDate "2022.03.05"]
[EventType "team-tourn"]
[EventCountry "GER"]
[SourceTitle "playchess.com"]
[Source "ChessBase"]
[SourceQuality "1"]
[TimeControl "40/5400+30:1800+30"]

{[%evp 16,81,43,23,16,22,14,13,15,10,18,17,18,19,11,12,20,29,37,41,33,31,45,35,37,33,42,39,56,63,63,54,52,47,55,37,31,36,70,67,74,20,19,0,0,0,0,0,0,0,0,0,0,0,0,0,0,-2,0,-4,-4,0,-5,-9,-8,-15,0,0]} 1. e4 {[%emt 0:00:00]} e6 {[%emt 0:00:00]} 2. d4 {[%emt 0:00:00]} d5 {[%emt 0:00:00]} 3. Nc3 {[%emt 0:00:00]} dxe4 {[%emt 0:00:00]} 4. Nxe4 {[%emt 0:00:00]} Bd7 {[%emt 0:00:00]} 5. Nf3 {[%emt 0:00:00]} Bc6 {[%emt 0:00:00]} 6. Bd3 {[%emt 0:00:00]} Nd7 {[%emt 0:00:00]} 7. O-O {[%emt 0:00:00]} Ngf6 {[%emt 0:00:00]} 8. Ned2 {[%emt 0:00:00]} Be7 {[%emt 0:00:00]} 9. Nc4 {[%emt 0:01:34]} Bb5 {[%emt 0:00:00] C10: French with 3 Nc3: Unusual Black 3rd moves and 3...dxe4.} 10. Nd6+ {[%emt 0:01:45]} Bxd6 {[%emt 0:00:00]} 11. Bxb5 {[%emt 0:00:14]} c6 {[%emt 0:00:00]} 12. Bd3 {[%emt 0:03:27]} Qc7 {[%emt 0:00:00] [#]} 13. g3 $146 {[%emt 0:05:17]} ({Predecessor:} 13. c4 Bf4 14. Qe2 O-O 15. g3 Bxc1 16. Raxc1 c5 17. Rfd1 {0-1 (27) Babareza,A-Boricsev,O (2329) Teheran 2006}) 13... O-O {[%emt 0:00:00]} 14. c3 {[%emt 0:05:01]} Rfe8 {[%emt 0:05:09]} 15. a4 {[%emt 0:04:02]} a5 {[%emt 0:04:20]} 16. Qc2 {[%emt 0:07:12]} g6 {[%emt 0:22:05]} 17. Bg5 {[%emt 0:01:15]} Nd5 {[%emt 0:01:03]} 18. Rfe1 {[%emt 0:02:38]} Be7 {[%emt 0:20:24]} 19. Bd2 {[%emt 0:06:22]} Bf6 {[%emt 0:03:39]} 20. h4 {[%emt 0:05:23][%cal Bh2h4,Bh4h5][%mdl 32]} e5 {[%emt 0:06:51]} 21. h5 {[%emt 0:01:00]} Kg7 {[%emt 0:00:59]} 22. Bc4 {[%emt 0:16:33]} Re7 {[%emt 0:07:55]} 23. Re4 {[%emt 0:09:25]} Rae8 {[%emt 0:02:41]} 24. Rae1 {[%emt 0:00:28]} Qd6 {[%emt 0:04:49]} 25. Bb3 {[%emt 0:04:58]} exd4 {[%emt 0:03:50]} 26. cxd4 {[%emt 0:00:42]} Nb4 {[%emt 0:03:00]} 27. Qc4 {[%emt 0:08:21]} gxh5 {[%emt 0:13:12][%cal Ob7b5]} 28. Rxe7 {[%emt 0:13:12]} (28. Ng5 $16 {[%cal Rg5f7]} Qd5 {[#]} 29. Qc3 $1) 28... Rxe7 $11 {[%emt 0:00:07] The position is equal.} 29. Rxe7 {[%emt 0:01:39] Really sharp!} Qxe7 {[%emt 0:00:03]} 30. Bxb4 {[%emt 0:01:55]} axb4 {[%emt 0:00:04]} 31. a5 {[%emt 0:00:05]} Nf8 {[%emt 0:02:30]} 32. d5 {[%emt 0:01:25]} cxd5 {[%emt 0:01:38]} 33. Qxd5 {[%emt 0:00:31]} Qe6 {[%emt 0:00:46]} 34. Qd3 {[%emt 0:02:00]} Qg4 {[%emt 0:00:36]} 35. Qd5 {[%emt 0:01:02][%csl LRb7,LRf7]} Qe6 {[%emt 0:00:05]} 36. Kg2 {[%emt 0:00:32][%cal Od5b7]} Qxd5 {[%emt 0:01:13]} 37. Bxd5 {[%emt 0:00:02]} Bd8 {[%emt 0:00:06]} 38. Ne5 {[%emt 0:00:28]} Bxa5 {[%emt 0:00:14]} 39. Nxf7 {[%emt 0:00:58]} Bc7 {[%emt 0:01:56]} 40. Ng5 {[%emt 0:00:18]} b6 {[%emt 0:00:42]} 41. Ne6+ {[%emt 0:00:00] Weighted Error Value: White=0.06 (flawless) /Black=0.03 (flawless)} 1/2-1/2